bitfinex/quotes_ETHUSD_20250213
["timestamp","ask_amount","ask_price","bid_price","bid_amount"]
[1739488144904,2.25,2673.9,2673.6,5.07100591]
[1739488145494,2.25,2674.1,2673.7,8.99006]
[1739488145698,2.25,2674.1,2673.8,0.04894953]
[1739488146034,5.98964,2674.1,2673.7,5.25]
[1739488146236,5.98971,2674.0,2673.9,0.04894953]
[1739488146539,3.73999,2673.8,2673.7,5.25]
[1739488146714,5.98999,2673.8,2673.7,5.25]
[1739488147429,6.54749,2673.8,2673.7,5.25]
[1739488147568,2.25,2673.4,2673.2,2.5120545]
[1739488148593,5.99029,2673.6,2673.2,6.2528345]
[1739488148793,2.25,2673.4,2673.2,2.5120545]
[1739488149206,5.99065,2673.4,2673.2,2.5120545]
[1739488149513,2.25,2673.4,2673.3,0.04880669]
[1739488149673,2.25,2673.4,2673.2,2.5120545]
[1739488149877,2.25,2673.6,2673.3,0.38056214]
[1739488150079,2.25,2673.6,2673.3,0.04880669]
[1739488150302,2.25,2673.6,2673.2,2.5120545]
[1739488150582,2.25,2673.6,2673.5,3.74041]
[1739488150782,2.25,2673.9,2673.5,3.74028]
[1739488150982,2.25,2673.9,2673.6,0.7825]
[1739488151192,2.25,2673.9,2673.7,3.74002]
[1739488151876,2.25,2674.1,2673.9,3.73977]
[1739488152076,0.3587,2674.9,2674.0,0.7901]
[1739488152277,0.279,2675.0,2674.5,3.73893]
[1739488152500,0.3587,2675.1,2674.6,0.8352026]
[1739488152745,0.3587,2675.1,2674.6,0.0451026]
[1739488152746,3.73873,2674.7,2674.6,0.0451026]
[1739488153092,3.73873,2674.7,2674.4,5.25]
[1739488153093,2.25,2674.7,2674.4,5.25]
[1739488153295,2.25,2674.7,2674.6,0.04508365]
[1739488153604,2.25,2674.7,2674.4,5.25]
[1739488154120,2.25,2674.7,2674.5,0.04814362]
[1739488154691,5.98887,2674.6,2674.5,0.04814362]
[1739488158926,2.25,2674.7,2674.5,0.04814362]
[1739488159125,3.73871,2674.8,2674.5,0.04814362]
[1739488159126,2.25,2674.8,2674.5,0.04814362]
[1739488159597,5.98867,2674.8,2674.5,0.04814362]
[1739488159798,9.72735,2674.8,2674.5,0.04814362]
[1739488159991,5.98867,2674.8,2674.5,0.04814362]
[1739488160888,9.72737,2674.8,2674.5,0.04814362]
[1739488161301,5.98873,2674.7,2674.5,0.04814362]
[1739488161502,6.90507,2674.6,2674.5,0.04814362]
[1739488161716,3.73937,2674.3,2674.1,5.25]
[1739488161922,5.98937,2674.3,2674.2,0.0474193]
[1739488164905,5.98943,2674.2,2674.1,5.25]
[1739488165102,5.98943,2674.2,2674.1,5.29736831]
[1739488165103,2.25,2674.2,2674.1,5.29736831]
[1739488166102,5.98909,2674.5,2674.1,5.29736831]
[1739488166486,5.98916,2674.4,2674.1,5.29736831]
[1739488166692,5.98943,2674.2,2674.1,5.29736831]
[1739488166888,3.73916,2674.4,2674.1,5.29736831]
[1739488167187,3.7393,2674.3,2674.1,5.29736831]
[1739488167809,3.73943,2674.2,2674.1,5.29736831]
[1739488170230,2.25,2674.2,2674.1,5.29736831]
[1739488170431,2.25,2674.3,2674.1,5.29736831]
[1739488170736,2.25,2674.3,2674.1,9.03684831]
[1739488171331,0.278,2675.0,2674.2,0.7882]
[1739488171541,3.73894,2674.6,2674.3,0.04769472]
[1739488171741,3.73894,2674.6,2674.2,6.0382]
[1739488171949,3.73894,2674.6,2674.4,0.04748053]
[1739488172105,3.73894,2674.6,2674.2,6.0382]
[1739488172305,3.73894,2674.6,2674.3,1.52695721]
[1739488172528,5.98865,2674.8,2674.3,5.26610721]
[1739488172702,3.73874,2674.7,2674.3,1.52695721]
[1739488174247,5.98866,2674.8,2674.3,1.52695721]
[1739488174449,2.25,2674.8,2674.3,1.52695721]
[1739488174649,3.73903,2674.5,2674.3,0.04748053]
[1739488175008,3.73903,2674.5,2674.2,6.0382]
[1739488175209,3.73903,2674.5,2674.4,0.04748053]
[1739488175443,3.73903,2674.5,2674.2,6.0382]
[1739488175710,5.98888,2674.6,2674.2,6.0382]
[1739488176045,5.98917,2674.4,2674.2,6.0382]
[1739488176233,2.25,2674.4,2674.2,6.0382]
[1739488176546,3.73867,2674.8,2674.2,6.0382]
[1739488176547,2.25,2674.7,2674.2,6.0382]
[1739488176914,3.73872,2674.8,2674.4,0.754]
[1739488177125,3.73872,2674.8,2674.5,0.3754]
[1739488177419,2.528,2674.9,2674.5,0.3754]
[1739488177755,3.73861,2674.8,2674.5,0.3754]
[1739488177946,7.4773,2674.8,2674.5,0.3754]
[1739488178150,3.73861,2674.8,2674.5,0.3754]
[1739488179339,3.73861,2674.8,2674.6,0.04748053]
[1739488180340,3.73873,2674.7,2674.6,0.04748053]
[1739488180545,3.73873,2674.7,2674.4,0.754]
[1739488180546,3.73867,2674.8,2674.4,0.754]
[1739488180886,3.73887,2674.6,2674.5,0.04748053]
[1739488181743,3.73923,2674.4,2674.2,5.25]
[1739488181941,3.73929,2674.3,2674.2,5.25]
[1739488182203,9.72813,2674.5,2674.2,5.25]
[1739488182504,3.73916,2674.4,2674.2,5.25]
[1739488183064,2.25,2674.5,2674.2,5.25]
[1739488183257,3.73924,2674.4,2674.2,5.25]
[1739488184497,3.73929,2674.3,2674.2,5.25]
[1739488185368,5.98924,2674.4,2674.2,5.25]
[1739488185597,5.9891,2674.5,2674.2,5.25]
[1739488185795,2.25,2674.5,2674.2,5.25]
[1739488186299,5.98874,2674.7,2674.2,6.604384]
[1739488186459,5.98874,2674.7,2674.2,8.98937]
[1739488187466,5.98874,2674.7,2674.3,3.73929]
[1739488188508,5.98874,2674.7,2674.2,8.98941]
[1739488188811,2.25,2674.7,2674.2,8.98941]
[1739488189015,2.25,2674.7,2674.4,0.768]
[1739488190009,5.9888,2674.7,2674.4,0.768]
[1739488191018,2.25,2674.7,2674.4,0.768]
[1739488191306,5.98851,2674.9,2674.4,6.993717]
[1739488191498,3.73863,2674.8,2674.4,10.732867]
[1739488191698,5.98848,2674.9,2674.5,3.73898]
[1739488192273,2.25,2675.0,2674.4,10.732867]
[1739488192473,3.73855,2674.9,2674.5,3.73899]
[1739488192710,3.73855,2674.9,2674.6,1.4471857]
[1739488193098,2.25,2675.0,2674.7,0.8103]
[1739488194017,5.98833,2675.0,2674.7,0.8103]
[1739488194315,5.98833,2675.0,2674.8,0.04744993]
[1739488194511,5.98833,2675.0,2674.7,0.8103]
[1739488194717,5.98833,2675.0,2674.8,0.04744993]
[1739488195010,5.98819,2675.1,2674.7,0.8103]
[1739488195211,5.98819,2675.1,2674.9,0.04744993]
[1739488195420,3.73831,2675.0,2674.7,0.8103]
[1739488196117,3.73831,2675.0,2674.7,6.0603]
[1739488196890,2.25,2674.9,2674.7,6.0603]
[1739488200223,3.73859,2674.8,2674.7,6.0603]
[1739488201015,3.73851,2674.9,2674.7,6.0603]
[1739488201219,0.277,2675.3,2674.9,3.73834]
[1739488201220,2.25,2675.3,2674.9,3.73834]
[1739488201515,3.73812,2675.2,2675.0,0.7763]
[1739488201888,7.47626,2675.2,2675.0,0.7763]
[1739488202086,3.73812,2675.2,2675.0,0.7763]
[1739488202310,0.3587,2675.2,2674.8,2.78748]
[1739488202618,3.73789,2675.3,2675.0,0.7763]
[1739488202837,4.25265794,2675.7,2675.0,0.7763]
[1739488202992,3.73777,2675.4,2675.0,4.51457]
[1739488203393,2.25,2675.6,2675.2,3.73794]
[1739488203795,2.25,2675.6,2675.3,3.73788]
[1739488204178,2.25,2675.6,2675.0,0.7763]
[1739488204383,3.73781,2675.4,2675.0,4.8988528]
[1739488204699,3.73781,2675.4,2675.0,0.7763]
[1739488204700,3.73817,2675.1,2675.0,0.7763]
[1739488204909,3.73817,2675.1,2674.8,0.788]
[1739488205126,2.25,2675.5,2674.9,0.03738123]
[1739488205446,2.25,2675.3,2674.9,3.73836]
[1739488205646,7.71408794,2675.7,2675.2,3.73801]
[1739488205852,3.73743,2675.7,2675.3,4.52517]
[1739488206046,3.92423252,2675.8,2675.3,4.52517]
[1739488206234,2.25,2675.7,2675.3,4.52517]
[1739488206610,3.73755,2675.6,2675.3,0.7873]
[1739488206809,3.73747,2675.6,2675.3,0.7873]
[1739488207009,3.73775,2675.4,2675.3,0.7873]
[1739488207237,3.73812,2675.2,2675.0,0.7626]
[1739488207419,3.73812,2675.2,2675.0,6.0126]
[1739488207948,3.73817,2675.1,2675.0,6.0126]
[1739488208256,3.73817,2675.1,2675.0,5.25]
[1739488208612,5.98817,2675.1,2675.0,5.25]
[1739488209018,3.73873,2674.7,2674.6,5.25]
[1739488209240,5.98873,2674.7,2674.6,5.25]
[1739488209516,5.98873,2674.7,2674.6,5.29244703]
[1739488209718,2.25,2674.7,2674.6,5.29244703]
[1739488209933,5.98873,2674.7,2674.6,5.29244703]
[1739488211957,3.73873,2674.7,2674.6,5.29244703]
[1739488213321,2.71700433,2674.9,2674.6,5.29244703]
[1739488213719,3.73862,2674.8,2674.6,5.29244703]
[1739488214044,3.73873,2674.7,2674.6,0.04244703]
[1739488214360,3.73873,2674.7,2674.3,5.25]
[1739488214560,3.73889,2674.6,2674.4,0.04244703]
[1739488214717,7.47787,2674.6,2674.4,0.04244703]
[1739488214916,3.73901,2674.5,2674.4,0.04244703]
[1739488216258,6.54651,2674.5,2674.4,0.04244703]
[1739488216554,2.8075,2674.5,2673.9,5.25]
[1739488216802,3.73955,2674.2,2674.0,0.04261018]
[1739488216943,3.73957,2674.1,2674.0,0.04261018]
[1739488217343,3.73957,2674.1,2673.8,0.7538]
[1739488217559,3.73957,2674.1,2673.9,0.04261018]
[1739488219183,7.91454794,2674.5,2673.9,0.04261018]
[1739488219184,3.73922,2674.4,2673.9,0.04261018]
[1739488219492,5.98921,2674.4,2673.9,4.5359902]
[1739488219986,3.73905,2674.5,2674.1,3.73949]
[1739488220143,4.01488,2674.6,2674.2,0.7857]
[1739488220144,4.01489,2674.6,2674.2,0.7857]
[1739488220342,3.7392,2674.4,2674.3,0.04261018]
[1739488220576,3.7392,2674.4,2674.2,0.7857]
[1739488220577,3.73939,2674.3,2674.0,0.8135]
[1739488220757,3.73945,2674.2,2674.1,0.04261018]
[1739488221256,3.73945,2674.2,2673.8,0.8135]
[1739488221457,3.73945,2674.2,2674.1,0.04261018]
[1739488221662,3.73945,2674.2,2673.8,0.8135]
[1739488221857,2.25,2674.2,2674.1,0.04261018]
[1739488222096,3.73982,2674.0,2673.8,0.8135]
[1739488222300,3.73982,2674.0,2673.6,5.25]
[1739488222301,5.98982,2674.0,2673.6,5.25]
[1739488222579,5.98982,2674.0,2673.6,6.880541]
[1739488223150,2.25,2673.9,2673.6,6.880541]
[1739488223487,2.25,2673.9,2673.6,10.620801]
[1739488223982,2.25,2673.9,2673.6,6.880541]
[1739488224160,2.25,2673.9,2673.7,3.74012]
[1739488224363,2.25,2674.0,2673.8,0.04261018]
[1739488224691,2.25,2674.0,2673.7,3.74012]
[1739488224851,2.25,2674.0,2673.9,0.04261018]
[1739488225051,2.25,2674.0,2673.7,3.74012]
[1739488225251,2.25,2674.0,2673.9,0.04261018]
[1739488225460,2.25,2674.1,2673.8,3.73999]
[1739488225679,2.25,2674.1,2673.9,0.04261018]
[1739488226189,2.25,2674.1,2673.8,0.8116]
[1739488226353,5.98971,2674.0,2673.9,0.04261018]
[1739488226700,5.98991,2673.9,2673.6,6.0616]
[1739488227560,3.73999,2673.8,2673.6,6.0616]
[1739488227756,5.98999,2673.8,2673.6,5.25]
[1739488228310,5.99013,2673.7,2673.6,5.25]
[1739488228484,2.25,2673.4,2673.2,5.25]
[1739488228681,5.99064,2673.4,2673.2,5.25]
[1739488229497,5.99069,2673.3,2673.2,5.25]
[1739488229680,5.99086,2673.2,2673.0,5.25]
[1739488229882,2.25,2673.2,2673.0,5.25]
[1739488230092,2.25,2673.5,2673.0,9.971379]
[1739488230303,3.7407,2673.3,2673.0,6.230299]
[1739488231016,5.99092,2673.2,2673.0,6.230299]
[1739488231311,5.99088,2673.2,2673.0,5.25]
[1739488231881,3.74181,2672.5,2672.4,5.25]
[1739488232111,3.74193,2672.5,2672.0,5.25]
[1739488232337,2.527,2672.6,2672.0,6.227988]
[1739488232338,5.99199,2672.4,2672.0,6.227988]
[1739488232806,5.99199,2672.4,2672.1,0.07205325]
[1739488233365,6.26873,2672.6,2672.1,0.07205325]
[1739488233570,3.74198,2672.4,2672.1,0.07205325]
[1739488234174,3.74216,2672.3,2672.1,0.07205325]
[1739488234569,3.74223,2672.2,2672.1,0.07205325]
[1739488235651,3.7421,2672.3,2672.1,0.07205325]
[1739488235840,5.99204,2672.4,2672.1,0.07205325]
[1739488236811,6.26876,2672.6,2672.1,0.07205325]
[1739488237116,3.74183,2672.5,2672.1,0.07205325]
[1739488237517,3.74212,2672.3,2672.1,5.32205325]
[1739488238758,3.74183,2672.5,2672.1,5.32205325]
[1739488238939,3.74182,2672.5,2672.1,5.32205325]
[1739488239115,3.89495794,2672.6,2672.3,3.74206]
[1739488239630,3.89495794,2672.6,2672.4,0.07238532]
[1739488240015,3.61795794,2672.6,2672.3,0.7583]
[1739488240216,4.01846,2672.8,2672.5,0.07238532]
[1739488240457,4.01846,2672.8,2672.3,0.7583]
[1739488240757,3.74153,2672.7,2672.3,0.7583]
[1739488241056,3.74153,2672.7,2672.4,0.07238532]
[1739488241242,0.277,2672.8,2672.4,3.81425532]
[1739488241562,5.99094,2673.2,2672.6,0.8325]
[1739488241758,5.99094,2673.2,2672.7,0.07308691]
[1739488241759,3.741,2673.1,2672.7,0.07308691]
[1739488242130,3.74137,2672.9,2672.7,0.07308691]
[1739488242330,3.74127,2672.9,2672.7,0.07308691]
[1739488242555,3.74139,2672.8,2672.7,0.07308691]
[1739488242756,3.74139,2672.8,2672.4,6.0055]
[1739488242961,3.74181,2672.5,2672.4,6.0055]
[1739488243632,3.74167,2672.6,2672.4,6.0055]
[1739488243834,7.48343,2672.6,2672.4,6.0055]
[1739488244468,3.74181,2672.5,2672.4,6.0055]
[1739488245068,7.35962794,2672.7,2672.4,6.0055]
[1739488245377,3.74167,2672.6,2672.4,6.0055]
[1739488245574,3.74181,2672.5,2672.4,5.25]
[1739488246564,3.74214,2672.3,2671.9,9.79094]
[1739488246888,3.74214,2672.3,2671.9,6.0484]
[1739488247190,2.25,2672.2,2671.9,6.0484]
[1739488247491,5.9923,2672.2,2671.9,6.0484]
[1739488248114,5.9923,2672.2,2671.9,0.7984]
[1739488248115,2.25,2672.2,2671.9,0.7984]
[1739488249691,2.25,2672.3,2671.9,4.54097]
[1739488249856,2.25,2672.3,2671.9,5.669309]
[1739488251478,2.25,2672.3,2672.1,3.74231]
[1739488251654,3.61795794,2672.4,2672.1,3.74231]
[1739488251849,5.86795794,2672.4,2672.1,3.74231]
[1739488252387,5.99182,2672.5,2672.1,3.74231]
[1739488252589,5.99182,2672.5,2672.0,5.25]
[1739488252790,5.99182,2672.5,2672.0,8.99251]
[1739488253773,5.99182,2672.5,2672.0,5.25]
[1739488253972,5.99201,2672.4,2672.0,5.25]
[1739488254423,5.99201,2672.4,2672.1,0.07189081]
[1739488254724,2.25,2672.4,2672.1,0.07189081]
[1739488255016,5.99169,2672.6,2672.2,3.74219]
[1739488255194,5.99169,2672.6,2672.3,0.0719572]
[1739488255383,5.99169,2672.6,2672.2,3.74219]
[1739488255577,5.99169,2672.6,2672.3,0.07200463]
[1739488255779,5.99169,2672.6,2672.2,3.74219]
[1739488256004,5.99169,2672.6,2672.3,0.07200463]
[1739488256216,5.99169,2672.6,2672.2,3.74219]
[1739488256421,5.99183,2672.5,2672.3,0.07200463]
[1739488256877,5.99183,2672.5,2672.0,8.99249]
[1739488257083,5.99183,2672.5,2672.4,0.07200463]
[1739488257285,5.99183,2672.5,2672.0,12.73491]
[1739488257485,5.99183,2672.5,2672.4,0.07200463]
[1739488257686,2.25,2672.5,2672.0,8.99243]
[1739488257918,5.99181,2672.5,2672.4,0.07200463]
[1739488258152,5.99202,2672.4,2672.0,8.99243]
[1739488258730,3.74211,2672.3,2672.0,5.25]
[1739488259722,2.25,2672.2,2672.0,5.25]
[1739488260248,5.99226,2672.2,2672.0,5.25]
[1739488260538,2.25,2672.3,2672.0,5.25]
[1739488260828,2.25,2672.3,2672.0,8.9925]
[1739488261250,2.25,2672.3,2672.0,12.73495]
[1739488261382,2.25,2672.3,2672.0,8.99245]
[1739488261583,2.25,2672.5,2672.1,0.772]
[1739488261786,2.25,2672.5,2672.1,4.51435]
[1739488262011,2.25,2672.5,2672.2,7.48436]
[1739488262426,2.25,2672.5,2672.2,3.74214]
[1739488262631,2.25,2672.6,2672.2,3.74214]
[1739488263002,2.25,2672.6,2672.2,7.48426]
[1739488263190,3.74182,2672.5,2672.2,1.5058524]
[1739488263398,5.99206,2672.4,2672.1,0.772]
[1739488263607,3.7421,2672.3,2672.1,0.772]
[1739488263788,3.74223,2672.2,2672.1,0.772]
[1739488263988,5.99237,2672.1,2672.0,5.25]
[1739488264623,3.74278,2671.9,2671.5,0.8074]
[1739488264935,5.99286,2671.8,2671.5,6.0574]
[1739488265938,2.25,2671.7,2671.5,6.0574]
[1739488266493,5.99301,2671.7,2671.5,6.0574]
[1739488267312,5.99301,2671.7,2671.5,5.25]
[1739488267518,5.99307,2671.6,2671.5,5.25]
[1739488268951,2.25,2671.6,2671.5,5.25]
[1739488269252,5.99307,2671.6,2671.5,5.25]
[1739488269465,5.99307,2671.6,2671.5,5.31775869]
[1739488270048,5.99307,2671.6,2671.5,0.06775869]
[1739488270522,2.25,2671.3,2671.1,5.25]
[1739488270738,2.25,2671.3,2670.9,0.7859]
[1739488270922,2.25,2671.2,2670.9,0.7859]
[1739488271537,2.25,2671.2,2670.9,4.52985]
[1739488272911,2.25,2671.2,2670.8,3.74408]
[1739488273347,2.25,2671.2,2670.9,3.74398]
[1739488273513,2.25,2671.2,2670.9,3.74391]
[1739488273853,7.36123794,2671.5,2670.9,3.74391]
[1739488273854,2.25,2671.4,2671.0,3.74383]
[1739488274446,5.99335,2671.4,2671.0,3.74383]
[1739488275681,5.99335,2671.4,2670.8,3.74415]
[1739488275958,3.74407,2670.9,2670.5,9.74725]
[1739488276117,5.99407,2670.9,2670.5,6.0027]
[1739488276813,3.7444,2670.7,2670.5,5.25]
[1739488277019,3.74447,2670.6,2670.5,5.25]
[1739488277564,10.52112794,2670.6,2670.5,5.25]
[1739488278947,5.86795794,2670.6,2670.5,5.25]
[1739488279281,5.99447,2670.6,2670.5,5.25]
[1739488279766,2.25,2670.6,2670.5,5.25]
[1739488282029,5.99447,2670.6,2670.5,5.25]
[1739488282324,5.99447,2670.6,2670.3,5.25]
[1739488282725,2.25,2670.6,2670.3,5.25]
[1739488283064,2.25,2670.7,2670.3,8.99489]
[1739488283766,5.99435,2670.7,2670.3,8.99489]
[1739488283950,2.25,2670.7,2670.3,8.99489]
[1739488284432,2.25,2670.7,2670.4,0.06659941]
[1739488285063,0.275,2670.7,2670.4,0.06659941]
[1739488285265,2.526,2671.0,2670.5,4.56494]
[1739488285454,3.74411,2670.9,2670.5,0.8204]
[1739488285654,2.25,2670.8,2670.6,0.06659941]
[1739488285855,3.74441,2670.7,2670.3,5.25]
[1739488287185,3.74454,2670.6,2670.3,5.25]
[1739488287385,2.25,2670.6,2670.3,5.25]
[1739488287556,5.99448,2670.6,2670.3,5.25]
[1739488288794,2.25,2670.6,2670.3,5.25]
[1739488288960,2.25,2670.6,2670.3,8.99483]
[1739488289167,2.25,2670.6,2670.3,5.25]
[1739488289368,2.25,2670.6,2670.3,8.99489]
[1739488289754,2.25,2670.6,2670.3,5.25]
[1739488289950,3.74475,2670.4,2670.3,5.25]
[1739488291053,5.995,2670.3,2669.9,0.7688]
[1739488291270,5.9949,2670.3,2669.9,4.51422]
[1739488291487,5.9949,2670.3,2669.9,0.7688]
[1739488292681,5.9949,2670.3,2669.9,4.51421]
[1739488293330,5.9949,2670.3,2669.9,0.7688]
[1739488293697,5.9949,2670.3,2669.9,4.51425]
[1739488294621,5.9949,2670.3,2669.9,0.7688]
[1739488294920,5.9949,2670.3,2669.9,4.51417]
[1739488296321,5.9949,2670.3,2669.9,0.7688]
[1739488296476,2.25,2670.4,2669.9,0.7688]
[1739488296684,2.25,2670.2,2669.9,4.51419]
[1739488296892,2.25,2670.2,2669.9,0.7688]
[1739488297296,2.25,2670.2,2669.9,4.51425]
[1739488297724,2.25,2670.2,2669.9,0.7688]
[1739488297928,2.25,2670.2,2669.9,4.51423]
[1739488298428,2.25,2670.1,2670.0,3.74531]
[1739488299527,2.25,2670.3,2670.0,3.81348587]
[1739488300314,5.995,2670.3,2670.0,0.06817587]
[1739488300640,2.25,2670.3,2670.0,3.81344587]
[1739488301014,2.25,2670.2,2670.0,0.06817587]
[1739488301214,2.25,2670.2,2670.0,3.81341587]
[1739488301824,7.91243794,2670.6,2670.2,3.74493]
[1739488302149,2.25,2670.5,2670.2,7.48997]
[1739488302300,2.25,2670.5,2670.3,0.06839436]
[1739488302501,5.99463,2670.5,2670.3,0.06839436]
[1739488302724,2.25,2670.5,2669.9,0.7688]
[1739488303038,2.25,2670.5,2670.4,0.06839436]
[1739488303238,2.25,2670.5,2670.2,3.74501]
[1739488303400,2.25,2670.5,2670.0,5.25]
[1739488303595,2.25,2670.5,2670.1,3.74517]
[1739488303801,2.25,2670.5,2670.1,3.81356436]
[1739488304023,7.63745794,2670.6,2670.1,0.06839436]
[1739488304024,5.9948,2670.4,2670.1,0.06839436]
[1739488304599,2.25,2670.4,2670.1,0.06839436]
[1739488305839,3.74492,2670.3,2670.1,0.06839436]
[1739488306041,2.6087,2670.2,2670.1,0.06839436]
[1739488306343,2.25,2670.2,2670.1,0.06839436]
[1739488307151,4.10352,2670.4,2670.1,0.06839436]
[1739488307152,2.25,2670.3,2670.1,0.06839436]
[1739488308023,2.25,2670.4,2670.1,3.81348436]
[1739488308224,2.25,2670.6,2670.1,0.06839436]
[1739488308423,2.25,2670.6,2670.2,3.74491]
[1739488308734,5.99449,2670.6,2670.2,3.74491]
[1739488308922,5.99449,2670.6,2670.3,0.0685559]
[1739488309318,5.99449,2670.6,2670.1,3.74512]
[1739488309557,5.99461,2670.5,2670.4,0.06867941]
[1739488309718,5.99461,2670.5,2670.0,6.016]
[1739488309719,2.25,2670.2,2670.0,6.016]
[1739488310561,2.25,2670.2,2670.0,9.76125]
[1739488311059,2.25,2670.4,2670.0,9.76125]
[1739488311837,5.99482,2670.4,2670.0,6.016]
[1739488312038,2.25,2670.2,2670.0,5.25]
[1739488312263,5.99517,2670.1,2670.0,5.25]
[1739488312426,2.25,2670.1,2670.0,5.25]
[1739488313264,2.25,2670.3,2670.0,5.25]
[1739488314363,5.99492,2670.3,2670.0,5.25]
[1739488314521,5.99492,2670.3,2670.1,0.06865091]
[1739488314858,2.25,2670.3,2670.1,0.06865091]
[1739488316123,5.99492,2670.3,2670.1,0.06865091]
[1739488316763,5.99503,2670.2,2670.1,0.06865091]
[1739488316969,2.25,2670.2,2670.1,0.06865091]
[1739488318169,5.99503,2670.2,2670.1,0.06865091]
[1739488318817,6.54503,2670.2,2670.1,0.06865091]
[1739488319171,5.99547,2669.9,2669.7,5.25]
[1739488321330,2.25,2669.9,2669.7,5.25]
[1739488322463,2.52959283,2669.8,2669.7,5.25]
[1739488322778,2.52959283,2669.8,2669.7,8.99573]
[1739488323680,2.52959283,2669.8,2669.7,3.74573]
[1739488324386,2.52959283,2669.8,2669.6,3.74584]
[1739488324609,2.52959283,2669.8,2669.5,0.7625]
[1739488324807,2.52959283,2669.8,2669.5,4.5085]
[1739488325206,2.52959283,2669.8,2669.6,3.74579]
[1739488325410,2.52959283,2669.7,2669.6,3.74579]
[1739488326531,2.52959283,2669.7,2669.5,0.7625]
[1739488326936,6.27540283,2669.7,2669.5,0.7625]
[1739488328023,2.25,2669.4,2669.0,0.0566606]
[1739488328232,2.25,2669.2,2669.0,0.0566606]
[1739488328537,2.25,2669.5,2669.1,3.74658]
[1739488328742,2.25,2669.5,2669.2,4.52381]
[1739488328743,2.523,2669.5,2669.2,4.52381]
[1739488329325,2.25,2669.5,2669.3,0.06726433]
[1739488330044,0.27959283,2669.4,2669.3,0.06726433]
[1739488330348,0.27959283,2669.4,2669.3,3.81356433]
[1739488331051,2.25,2669.8,2669.6,0.7994]
[1739488331339,2.25,2669.8,2669.7,0.06719785]
[1739488332119,2.25,2669.9,2669.7,0.06719785]
[1739488332320,2.52886478,2669.8,2669.7,0.06719785]
[1739488333933,2.52886478,2669.8,2669.7,3.81292785]
[1739488335188,0.27886478,2669.8,2669.7,5.1143349]
[1739488335832,0.27886478,2669.8,2669.7,10.3643349]
[1739488336053,0.27886478,2669.8,2669.7,11.1323349]
[1739488336455,0.27886478,2669.8,2669.7,14.1323349]
[1739488337014,4.01755,2670.6,2670.1,7.49021]
[1739488337171,0.273,2670.6,2670.2,3.74501]
[1739488337371,0.273,2670.6,2670.2,3.81180904]
[1739488337705,3.74445,2670.7,2670.2,0.06679904]
[1739488338023,0.27898966,2670.5,2670.2,0.06679904]
[1739488339205,4.02361966,2670.5,2670.2,0.06679904]
[1739488339387,0.27898966,2670.4,2670.2,0.06679904]
[1739488339596,4.02375966,2670.4,2670.2,0.06679904]
[1739488339804,0.63768966,2670.4,2670.2,0.06679904]
[1739488339965,0.63768966,2670.4,2670.1,3.74514]
[1739488340162,0.63768966,2670.4,2670.3,0.06586873]
[1739488340517,0.27898966,2670.3,2669.9,8.03748]
[1739488340802,0.27898966,2670.3,2670.0,3.74531]
[1739488341031,0.27898966,2670.3,2670.0,3.74524]
[1739488341467,0.27898966,2670.3,2670.0,7.49049]
[1739488341833,0.27898966,2670.3,2670.0,3.74524]
[1739488342232,0.27898966,2670.3,2670.0,3.74521]
[1739488342446,0.27898966,2670.3,2670.1,3.74515]
[1739488342777,0.27898966,2670.3,2670.2,3.74503]
[1739488343347,0.273,2670.7,2670.4,3.74467]
[1739488343529,5.99655,2670.6,2670.2,5.25]
[1739488343930,5.99655,2670.6,2670.2,8.99502]
[1739488344327,4.29463,2670.5,2670.3,0.06585924]
[1739488344596,0.3587,2670.4,2670.3,0.06585924]
[1739488344795,0.3587,2670.4,2670.2,5.25]
[1739488344940,0.3587,2670.4,2670.3,0.06585924]
[1739488345144,0.3587,2670.4,2670.2,5.25]
[1739488345340,0.3587,2670.4,2670.3,0.06583077]
[1739488345632,0.6317,2670.7,2670.3,3.74482]
[1739488345862,0.6317,2670.7,2670.3,3.81065077]
[1739488346071,0.6317,2670.7,2670.3,0.06583077]
[1739488346072,3.74448,2670.6,2670.3,0.06583077]
[1739488346273,4.37603,2670.7,2670.3,0.06583077]
[1739488346474,4.37603,2670.7,2670.2,8.9949]
[1739488346768,2.252,2670.6,2670.2,8.9949]
[1739488346973,0.27896269,2670.5,2670.3,0.06585924]
[1739488347277,0.27896269,2670.5,2670.2,8.9949]
[1739488347472,0.27896269,2670.5,2670.4,0.06585924]
[1739488347633,0.27896269,2670.5,2670.2,3.7449]
[1739488347974,0.27896269,2670.5,2670.3,3.74478]
[1739488348144,0.27896269,2670.5,2670.3,3.81063924]
[1739488348351,0.27896269,2670.5,2670.3,0.06585924]
[1739488348548,0.27896269,2670.5,2670.2,4.20262]
[1739488348753,0.27896269,2670.5,2670.4,0.06585924]
[1739488348966,0.27896269,2670.5,2670.2,4.20262]
[1739488349164,0.27896269,2670.5,2670.4,0.06585924]
[1739488349371,4.02357269,2670.5,2670.0,4.57639]
[1739488349675,6.27557269,2670.5,2670.4,0.06581178]
[1739488349879,6.27557269,2670.5,2670.1,3.74515]
[1739488350384,6.27557269,2670.5,2670.2,0.06577382]
[1739488350677,10.02031269,2670.5,2670.2,0.06577382]
[1739488350876,6.27557269,2670.5,2670.2,0.06577382]
[1739488351180,6.27572269,2670.4,2670.3,0.06577382]
[1739488351380,2.53096269,2670.4,2670.0,8.3217]